[Event "Titled Tuesday Blitz June 13 Early 2023"]
[White "Sadykov, Ramil"]
[Black "Madaminov, Mukhiddin"]
[WhiteFideId "24113590"]
[BlackFideId "14210703"]
[WhiteElo "2245"]
[BlackElo "2511"]
[Result "0-1"]
[Round "5"]
[TimeControl "180+2"]
[Date "2023.06.13"]
[WhiteClock "0:00:02"]
[BlackClock "0:02:02"]
[Board "30"]

1. d4 {[%clk 0:02:34]}  e6 {[%clk 0:02:59]} 2. e4 {[%clk 0:02:33]}  d5 {[%clk 0:02:58]} 3. exd5 {[%clk 0:02:34]}  exd5 {[%clk 0:02:59]} 4. Bd3 {[%clk 0:02:34]}  Nc6 {[%clk 0:03:00]} 5. c3 {[%clk 0:02:34]}  Bd6 {[%clk 0:03:00]} 6. Qf3 {[%clk 0:02:31]}  Nge7 {[%clk 0:02:54]} 7. Bf4 {[%clk 0:02:26]}  Bxf4 {[%clk 0:02:40]} 8. Qxf4 {[%clk 0:02:27]}  O-O {[%clk 0:02:41]} 9. Ne2 {[%clk 0:02:14]}  Ng6 {[%clk 0:02:39]} 10. Qg3 {[%clk 0:02:02]}  Nce7 {[%clk 0:02:27]} 11. O-O {[%clk 0:01:57]}  Bf5 {[%clk 0:02:26]} 12. Nd2 {[%clk 0:01:56]}  c6 {[%clk 0:02:25]} 13. Rfe1 {[%clk 0:01:49]}  Qd7 {[%clk 0:02:23]} 14. Bxf5 {[%clk 0:01:27]}  Nxf5 {[%clk 0:02:21]} 15. Qh3 {[%clk 0:01:25]}  Rad8 {[%clk 0:02:16]} 16. Ng3 {[%clk 0:01:21]}  Nd6 {[%clk 0:02:15]} 17. Qxd7 {[%clk 0:01:16]}  Rxd7 {[%clk 0:02:16]} 18. f3 {[%clk 0:01:14]}  f5 {[%clk 0:02:12]} 19. Re6 {[%clk 0:00:52]}  Nf4 {[%clk 0:02:09]} 20. Re5 {[%clk 0:00:46]}  Nd3 {[%clk 0:02:07]} 21. Re2 {[%clk 0:00:36]}  Nxb2 {[%clk 0:02:06]} 22. Nb3 {[%clk 0:00:32]}  Na4 {[%clk 0:02:06]} 23. Rc1 {[%clk 0:00:22]}  f4 {[%clk 0:02:06]} 24. Nh1 {[%clk 0:00:18]}  Nb5 {[%clk 0:02:01]} 25. Nc5 {[%clk 0:00:12]}  Nxc5 {[%clk 0:02:01]} 26. dxc5 {[%clk 0:00:13]}  d4 {[%clk 0:02:02]} 27. cxd4 {[%clk 0:00:07]}  Nxd4 {[%clk 0:02:02]} 28. Rb2 {[%clk 0:00:05]}  Re8 {[%clk 0:02:02]} 29. Nf2 {[%clk 0:00:02]}  Ne2+ {[%clk 0:02:02]} 0-1


[Site "https://www.chess.com"]

[Event "Titled Tuesday Blitz June 13 Early 2023"]
[White "Sjugirov, Sanan"]
[Black "De Silva, L M S T"]
[WhiteFideId "4189302"]
[BlackFideId "9953698"]
[WhiteElo "2569"]
[BlackElo "2395"]
[Result "1-0"]
[Round "5"]
[TimeControl "180+2"]
[Date "2023.06.13"]
[WhiteClock "0:00:09"]
[BlackClock "0:00:04"]
[Board "31"]

1. e4 {[%clk 0:03:00]}  e5 {[%clk 0:03:00]} 2. Nf3 {[%clk 0:03:01]}  Nc6 {[%clk 0:03:00]} 3. Bb5 {[%clk 0:03:01]}  a6 {[%clk 0:03:01]} 4. Ba4 {[%clk 0:03:02]}  Nf6 {[%clk 0:03:02]} 5. O-O {[%clk 0:03:02]}  Be7 {[%clk 0:03:02]} 6. d3 {[%clk 0:03:03]}  b5 {[%clk 0:03:02]} 7. Bb3 {[%clk 0:03:04]}  O-O {[%clk 0:03:03]} 8. a4 {[%clk 0:03:04]}  Bb7 {[%clk 0:03:02]} 9. Re1 {[%clk 0:03:02]}  d6 {[%clk 0:03:01]} 10. Nbd2 {[%clk 0:03:00]}  Nb8 {[%clk 0:02:45]} 11. c3 {[%clk 0:02:54]}  Nbd7 {[%clk 0:02:44]} 12. Bc2 {[%clk 0:02:54]}  c5 {[%clk 0:02:43]} 13. Nf1 {[%clk 0:02:54]}  Re8 {[%clk 0:02:43]} 14. Ng3 {[%clk 0:02:54]}  Nf8 {[%clk 0:02:44]} 15. d4 {[%clk 0:02:48]}  Ng6 {[%clk 0:02:41]} 16. d5 {[%clk 0:02:42]}  Qc7 {[%clk 0:02:41]} 17. h3 {[%clk 0:02:37]}  c4 {[%clk 0:02:39]} 18. Be3 {[%clk 0:02:36]}  Nd7 {[%clk 0:02:38]} 19. Nf5 {[%clk 0:02:16]}  Bf8 {[%clk 0:02:37]} 20. h4 {[%clk 0:02:16]}  Ne7 {[%clk 0:02:35]} 21. Ng3 {[%clk 0:02:09]}  Nc5 {[%clk 0:02:33]} 22. h5 {[%clk 0:02:08]}  g6 {[%clk 0:02:30]} 23. Nh2 {[%clk 0:02:02]}  Bg7 {[%clk 0:02:26]} 24. Ng4 {[%clk 0:01:43]}  Rf8 {[%clk 0:02:25]} 25. axb5 {[%clk 0:00:54]}  axb5 {[%clk 0:02:24]} 26. Rxa8 {[%clk 0:00:55]}  Bxa8 {[%clk 0:02:25]} 27. Nh6+ {[%clk 0:00:40]}  Kh8 {[%clk 0:02:23]} 28. hxg6 {[%clk 0:00:41]}  fxg6 {[%clk 0:02:21]} 29. Ng4 {[%clk 0:00:39]}  Bb7 {[%clk 0:02:20]} 30. Qd2 {[%clk 0:00:31]}  Bc8 {[%clk 0:02:20]} 31. Nh2 {[%clk 0:00:31]}  Bd7 {[%clk 0:02:09]} 32. Ra1 {[%clk 0:00:31]}  Na4 {[%clk 0:01:43]} 33. Bd1 {[%clk 0:00:31]}  Ra8 {[%clk 0:01:39]} 34. Nf3 {[%clk 0:00:30]}  Qb7 {[%clk 0:01:37]} 35. Ng5 {[%clk 0:00:29]}  Kg8 {[%clk 0:01:37]} 36. Ne6 {[%clk 0:00:28]}  Bf6 {[%clk 0:01:02]} 37. Bg5 {[%clk 0:00:27]}  Bxg5 {[%clk 0:01:01]} 38. Qxg5 {[%clk 0:00:28]}  Bxe6 {[%clk 0:01:01]} 39. dxe6 {[%clk 0:00:29]}  Nc6 {[%clk 0:00:49]} 40. Nf5 {[%clk 0:00:27]}  Nc5 {[%clk 0:00:31]} 41. Rxa8+ {[%clk 0:00:26]}  Qxa8 {[%clk 0:00:32]} 42. Qf6 {[%clk 0:00:22]}  Qf8 {[%clk 0:00:27]} 43. Qxf8+ {[%clk 0:00:11]}  Kxf8 {[%clk 0:00:28]} 44. Nxd6 {[%clk 0:00:12]}  Ke7 {[%clk 0:00:20]} 45. Nxb5 {[%clk 0:00:11]}  Kxe6 {[%clk 0:00:11]} 46. Na3 {[%clk 0:00:11]}  Na5 {[%clk 0:00:11]} 47. Be2 {[%clk 0:00:10]}  Nd3 {[%clk 0:00:08]} 48. Bxd3 {[%clk 0:00:09]}  cxd3 {[%clk 0:00:09]} 49. Kf1 {[%clk 0:00:10]}  Nb3 {[%clk 0:00:08]} 50. Ke1 {[%clk 0:00:10]}  Kd6 {[%clk 0:00:09]} 51. Nc4+ {[%clk 0:00:09]}  Ke6 {[%clk 0:00:06]} 52. Nd2 {[%clk 0:00:09]}  Nc5 {[%clk 0:00:06]} 53. f3 {[%clk 0:00:09]}  Na4 {[%clk 0:00:06]} 54. Nc4 {[%clk 0:00:09]}  Nc5 {[%clk 0:00:06]} 55. Kd2 {[%clk 0:00:09]}  g5 {[%clk 0:00:04]} 56. b4 {[%clk 0:00:09]} 1-0


[Site "https://www.chess.com"]

[Event "Titled Tuesday Blitz June 13 Early 2023"]
[White "Galchenko, Matvey"]
[Black "Miranda, Rafael"]
[WhiteFideId "24175480"]
[BlackFideId "130990"]
[WhiteElo "2423"]
[BlackElo "2204"]
[Result "1-0"]
[Round "5"]
[TimeControl "180+2"]
[Date "2023.06.13"]
[WhiteClock "0:00:09"]
[BlackClock "0:00:25"]
[Board "35"]

1. f4 {[%clk 0:02:53]}  d6 {[%clk 0:02:59]} 2. Nf3 {[%clk 0:02:53]}  g6 {[%clk 0:02:59]} 3. g3 {[%clk 0:02:53]}  Bg7 {[%clk 0:03:00]} 4. Bg2 {[%clk 0:02:54]}  Nf6 {[%clk 0:03:00]} 5. d3 {[%clk 0:02:54]}  O-O {[%clk 0:03:00]} 6. O-O {[%clk 0:02:55]}  c5 {[%clk 0:03:01]} 7. Nc3 {[%clk 0:02:55]}  Nc6 {[%clk 0:03:00]} 8. e4 {[%clk 0:02:56]}  e6 {[%clk 0:03:00]} 9. h3 {[%clk 0:02:54]}  b6 {[%clk 0:03:00]} 10. g4 {[%clk 0:02:52]}  Nd7 {[%clk 0:02:58]} 11. Ne2 {[%clk 0:02:48]}  Bb7 {[%clk 0:02:54]} 12. Ng3 {[%clk 0:02:48]}  Nd4 {[%clk 0:02:51]} 13. g5 {[%clk 0:02:36]}  f5 {[%clk 0:02:38]} 14. gxf6 {[%clk 0:02:05]}  Qxf6 {[%clk 0:02:31]} 15. c3 {[%clk 0:02:02]}  Nxf3+ {[%clk 0:02:26]} 16. Qxf3 {[%clk 0:02:03]}  Rae8 {[%clk 0:02:22]} 17. Be3 {[%clk 0:01:59]}  d5 {[%clk 0:02:11]} 18. e5 {[%clk 0:01:36]}  Qh4 {[%clk 0:01:46]} 19. Qg4 {[%clk 0:01:32]}  Qxg4 {[%clk 0:01:14]} 20. hxg4 {[%clk 0:01:33]}  g5 {[%clk 0:01:12]} 21. d4 {[%clk 0:01:30]}  gxf4 {[%clk 0:01:09]} 22. Bxf4 {[%clk 0:01:30]}  cxd4 {[%clk 0:01:09]} 23. cxd4 {[%clk 0:01:30]}  Rc8 {[%clk 0:01:10]} 24. Rf2 {[%clk 0:01:28]}  Nb8 {[%clk 0:01:10]} 25. Nh5 {[%clk 0:01:16]}  Nc6 {[%clk 0:01:08]} 26. Rd1 {[%clk 0:01:14]}  Bh8 {[%clk 0:00:53]} 27. g5 {[%clk 0:01:12]}  Rce8 {[%clk 0:00:52]} 28. Nf6+ {[%clk 0:01:02]}  Bxf6 {[%clk 0:00:52]} 29. exf6 {[%clk 0:01:02]}  Ba6 {[%clk 0:00:43]} 30. Bf3 {[%clk 0:00:58]}  Rc8 {[%clk 0:00:42]} 31. Bg4 {[%clk 0:00:52]}  Kf7 {[%clk 0:00:36]} 32. Rh2 {[%clk 0:00:44]}  Rh8 {[%clk 0:00:35]} 33. Bh5+ {[%clk 0:00:39]}  Kf8 {[%clk 0:00:35]} 34. Bd6+ {[%clk 0:00:39]}  Kg8 {[%clk 0:00:34]} 35. Rc1 {[%clk 0:00:23]}  Bc4 {[%clk 0:00:26]} 36. b3 {[%clk 0:00:17]}  Bd3 {[%clk 0:00:25]} 37. Rxc6 {[%clk 0:00:13]}  Rxc6 {[%clk 0:00:25]} 38. f7+ {[%clk 0:00:13]}  Kg7 {[%clk 0:00:25]} 39. Be5+ {[%clk 0:00:14]}  Kf8 {[%clk 0:00:24]} 40. Bxh8 {[%clk 0:00:14]}  Bg6 {[%clk 0:00:25]} 41. Bxg6 {[%clk 0:00:11]}  hxg6 {[%clk 0:00:26]} 42. Rf2 {[%clk 0:00:11]}  Rc1+ {[%clk 0:00:26]} 43. Kh2 {[%clk 0:00:11]}  Rc8 {[%clk 0:00:27]} 44. Be5 {[%clk 0:00:10]}  Rd8 {[%clk 0:00:27]} 45. Kg3 {[%clk 0:00:09]}  Rd7 {[%clk 0:00:28]} 46. Bg7+ {[%clk 0:00:09]}  Kxg7 {[%clk 0:00:25]} 47. f8=Q+ {[%clk 0:00:09]} 1-0


[Site "https://www.chess.com"]

[Event "Titled Tuesday Blitz June 13 Early 2023"]
[White "Kashlinskaya, Alina"]
[Black "Arutinian, David"]
[WhiteFideId "4198026"]
[BlackFideId "13601741"]
[WhiteElo "2383"]
[BlackElo "2525"]
[Result "0-1"]
[Round "5"]
[TimeControl "180+2"]
[Date "2023.06.13"]
[WhiteClock "0:00:02"]
[BlackClock "0:01:08"]
[Board "36"]

1. Nf3 {[%clk 0:02:55]}  Nf6 {[%clk 0:03:00]} 2. g3 {[%clk 0:02:55]}  b5 {[%clk 0:02:59]} 3. Bg2 {[%clk 0:02:55]}  Bb7 {[%clk 0:03:00]} 4. O-O {[%clk 0:02:56]}  e6 {[%clk 0:03:00]} 5. a4 {[%clk 0:02:55]}  b4 {[%clk 0:03:00]} 6. d4 {[%clk 0:02:51]}  c5 {[%clk 0:02:59]} 7. c4 {[%clk 0:02:50]}  Na6 {[%clk 0:02:59]} 8. b3 {[%clk 0:02:47]}  cxd4 {[%clk 0:02:56]} 9. Nxd4 {[%clk 0:02:42]}  Bxg2 {[%clk 0:02:56]} 10. Kxg2 {[%clk 0:02:43]}  Qc8 {[%clk 0:02:55]} 11. Bb2 {[%clk 0:02:40]}  Nc5 {[%clk 0:02:55]} 12. Nd2 {[%clk 0:02:40]}  Be7 {[%clk 0:02:55]} 13. Qc2 {[%clk 0:02:38]}  Qb7+ {[%clk 0:02:55]} 14. Kg1 {[%clk 0:02:30]}  O-O {[%clk 0:02:54]} 15. Rad1 {[%clk 0:02:30]}  Rac8 {[%clk 0:02:54]} 16. Qb1 {[%clk 0:02:07]}  h6 {[%clk 0:02:51]} 17. Rfe1 {[%clk 0:02:05]}  d5 {[%clk 0:02:43]} 18. cxd5 {[%clk 0:02:05]}  Nxd5 {[%clk 0:02:44]} 19. Nc4 {[%clk 0:02:03]}  Rfd8 {[%clk 0:02:44]} 20. e4 {[%clk 0:01:45]}  Nc3 {[%clk 0:02:43]} 21. Bxc3 {[%clk 0:01:43]}  bxc3 {[%clk 0:02:44]} 22. Qc2 {[%clk 0:01:23]}  Qb4 {[%clk 0:02:34]} 23. e5 {[%clk 0:00:46]}  Nxb3 {[%clk 0:02:19]} 24. Nxb3 {[%clk 0:00:38]}  Qxc4 {[%clk 0:02:17]} 25. Na5 {[%clk 0:00:34]}  Qb4 {[%clk 0:02:11]} 26. Rxd8+ {[%clk 0:00:31]}  Bxd8 {[%clk 0:02:11]} 27. Nb3 {[%clk 0:00:31]}  Qxa4 {[%clk 0:02:09]} 28. Ra1 {[%clk 0:00:31]}  Qd7 {[%clk 0:02:01]} 29. Rd1 {[%clk 0:00:31]}  Qb5 {[%clk 0:01:57]} 30. Rd3 {[%clk 0:00:31]}  Qxe5 {[%clk 0:01:55]} 31. Nd4 {[%clk 0:00:28]}  Bb6 {[%clk 0:01:53]} 32. Ne2 {[%clk 0:00:22]}  Ba5 {[%clk 0:01:39]} 33. Rd7 {[%clk 0:00:18]}  Qc5 {[%clk 0:01:35]} 34. Nd4 {[%clk 0:00:17]}  Bb6 {[%clk 0:01:33]} 35. Nb3 {[%clk 0:00:11]}  Qf5 {[%clk 0:01:29]} 36. Qxf5 {[%clk 0:00:02]}  exf5 {[%clk 0:01:30]} 37. Kf1 {[%clk 0:00:02]}  c2 {[%clk 0:01:27]} 38. Nc1 {[%clk 0:00:03]}  Bc5 {[%clk 0:01:14]} 39. Ke2 {[%clk 0:00:03]}  a5 {[%clk 0:01:12]} 40. Kd2 {[%clk 0:00:03]}  Bb4+ {[%clk 0:01:12]} 41. Kd3 {[%clk 0:00:03]}  g6 {[%clk 0:01:11]} 42. Ra7 {[%clk 0:00:03]}  Kg7 {[%clk 0:01:11]} 43. f4 {[%clk 0:00:03]}  h5 {[%clk 0:01:11]} 44. h3 {[%clk 0:00:03]}  Rc3+ {[%clk 0:01:08]} 45. Kd4 {[%clk 0:00:02]} 0-1


[Site "https://www.chess.com"]

[Event "Titled Tuesday Blitz June 13 Early 2023"]
[White "Harsha Bharathakoti"]
[Black "Asavasaetakul, Chawit"]
[WhiteFideId "5078776"]
[BlackFideId "6204856"]
[WhiteElo "2504"]
[BlackElo "1919"]
[Result "1-0"]
[Round "5"]
[TimeControl "180+2"]
[Date "2023.06.13"]
[WhiteClock "0:00:28"]
[BlackClock "0:00:02"]
[Board "37"]

1. Nf3 {[%clk 0:03:00]}  d5 {[%clk 0:02:58]} 2. g3 {[%clk 0:03:01]}  c6 {[%clk 0:02:59]} 3. Bg2 {[%clk 0:03:02]}  Nf6 {[%clk 0:02:59]} 4. O-O {[%clk 0:03:01]}  Bf5 {[%clk 0:03:00]} 5. c4 {[%clk 0:03:01]}  e6 {[%clk 0:03:00]} 6. Qb3 {[%clk 0:03:02]}  Qb6 {[%clk 0:02:57]} 7. d3 {[%clk 0:03:02]}  Nbd7 {[%clk 0:02:58]} 8. Be3 {[%clk 0:02:49]}  Bc5 {[%clk 0:02:58]} 9. Bxc5 {[%clk 0:02:49]}  Nxc5 {[%clk 0:02:58]} 10. Qc2 {[%clk 0:02:50]}  O-O {[%clk 0:02:56]} 11. Nbd2 {[%clk 0:02:51]}  h6 {[%clk 0:02:55]} 12. Rab1 {[%clk 0:02:50]}  Rac8 {[%clk 0:02:39]} 13. b4 {[%clk 0:02:49]}  Ncd7 {[%clk 0:02:39]} 14. h3 {[%clk 0:02:37]}  Rfe8 {[%clk 0:02:38]} 15. Rfe1 {[%clk 0:02:16]}  Bh7 {[%clk 0:02:38]} 16. Qc3 {[%clk 0:02:07]}  e5 {[%clk 0:02:37]} 17. e4 {[%clk 0:01:53]}  dxe4 {[%clk 0:02:27]} 18. c5 {[%clk 0:01:53]}  Qa6 {[%clk 0:02:18]} 19. dxe4 {[%clk 0:01:53]}  Rcd8 {[%clk 0:02:16]} 20. Bf1 {[%clk 0:01:36]}  Qa4 {[%clk 0:01:28]} 21. Bc4 {[%clk 0:01:35]}  b5 {[%clk 0:01:29]} 22. Bd3 {[%clk 0:01:28]}  Nf8 {[%clk 0:01:22]} 23. a3 {[%clk 0:01:20]}  Ne6 {[%clk 0:01:16]} 24. Nxe5 {[%clk 0:01:11]}  Nd4 {[%clk 0:01:16]} 25. f4 {[%clk 0:01:05]}  Qa6 {[%clk 0:01:06]} 26. Re3 {[%clk 0:00:57]}  Qc8 {[%clk 0:01:05]} 27. Kh2 {[%clk 0:00:58]}  Ne6 {[%clk 0:00:43]} 28. Nef3 {[%clk 0:00:56]}  Qc7 {[%clk 0:00:42]} 29. e5 {[%clk 0:00:45]}  Nd5 {[%clk 0:00:41]} 30. Bxh7+ {[%clk 0:00:45]}  Kh8 {[%clk 0:00:38]} 31. Qb3 {[%clk 0:00:45]}  Nxe3 {[%clk 0:00:38]} 32. Qxe3 {[%clk 0:00:46]}  Kxh7 {[%clk 0:00:38]} 33. Ne4 {[%clk 0:00:47]}  Nf8 {[%clk 0:00:28]} 34. Nd6 {[%clk 0:00:40]}  Re7 {[%clk 0:00:19]} 35. Re1 {[%clk 0:00:35]}  Kg8 {[%clk 0:00:19]} 36. Nd4 {[%clk 0:00:36]}  Ne6 {[%clk 0:00:17]} 37. N4f5 {[%clk 0:00:36]}  Red7 {[%clk 0:00:18]} 38. Qf3 {[%clk 0:00:35]}  a5 {[%clk 0:00:17]} 39. Qg4 {[%clk 0:00:35]}  axb4 {[%clk 0:00:18]} 40. axb4 {[%clk 0:00:36]}  Ra8 {[%clk 0:00:17]} 41. Nxh6+ {[%clk 0:00:31]}  Kf8 {[%clk 0:00:18]} 42. Nhxf7 {[%clk 0:00:30]}  Ra2+ {[%clk 0:00:16]} 43. Kh1 {[%clk 0:00:31]}  Rxf7 {[%clk 0:00:16]} 44. Qxe6 {[%clk 0:00:32]}  Re7 {[%clk 0:00:16]} 45. Qxa2 {[%clk 0:00:29]}  Qb8 {[%clk 0:00:02]} 46. f5 {[%clk 0:00:28]} 1-0


[Site "https://www.chess.com"]

[Event "Titled Tuesday Blitz June 13 Early 2023"]
[White "Harutjunyan, Gevorg"]
[Black "ArtemDyachuk"]
[WhiteFideId "13300873"]
[WhiteElo "2474"]
[BlackElo "2628"]
[Result "1-0"]
[Round "5"]
[TimeControl "180+2"]
[Date "2023.06.13"]
[WhiteClock "0:00:28"]
[BlackClock "0:00:00"]
[Board "40"]

1. e4 {[%clk 0:03:00]}  c5 {[%clk 0:02:57]} 2. Nf3 {[%clk 0:02:59]}  Nc6 {[%clk 0:02:57]} 3. Bb5 {[%clk 0:02:59]}  g6 {[%clk 0:02:51]} 4. O-O {[%clk 0:02:55]}  Bg7 {[%clk 0:02:51]} 5. c3 {[%clk 0:02:56]}  a6 {[%clk 0:02:51]} 6. Ba4 {[%clk 0:02:53]}  b5 {[%clk 0:02:41]} 7. Bc2 {[%clk 0:02:52]}  Bb7 {[%clk 0:02:41]} 8. Re1 {[%clk 0:02:42]}  Nf6 {[%clk 0:02:32]} 9. a4 {[%clk 0:02:42]}  O-O {[%clk 0:02:31]} 10. Na3 {[%clk 0:02:41]}  d5 {[%clk 0:02:28]} 11. e5 {[%clk 0:02:38]}  Nd7 {[%clk 0:02:25]} 12. d4 {[%clk 0:02:36]}  cxd4 {[%clk 0:02:23]} 13. cxd4 {[%clk 0:02:35]}  b4 {[%clk 0:02:23]} 14. Nb1 {[%clk 0:02:35]}  Rc8 {[%clk 0:02:22]} 15. Nbd2 {[%clk 0:02:29]}  Qc7 {[%clk 0:02:21]} 16. Bd3 {[%clk 0:02:20]}  Na5 {[%clk 0:02:01]} 17. Nf1 {[%clk 0:02:19]}  Nb6 {[%clk 0:01:55]} 18. h4 {[%clk 0:02:10]}  Qd7 {[%clk 0:01:27]} 19. e6 {[%clk 0:01:53]}  fxe6 {[%clk 0:01:23]} 20. N1h2 {[%clk 0:01:50]}  Nc6 {[%clk 0:00:37]} 21. Ng4 {[%clk 0:01:19]}  Nxd4 {[%clk 0:00:33]} 22. Nfe5 {[%clk 0:01:10]}  Qe8 {[%clk 0:00:24]} 23. Be3 {[%clk 0:01:03]}  Nf5 {[%clk 0:00:14]} 24. Bxb6 {[%clk 0:01:02]}  h5 {[%clk 0:00:13]} 25. Nh2 {[%clk 0:00:57]}  Nxh4 {[%clk 0:00:13]} 26. Bd4 {[%clk 0:00:50]}  Nf5 {[%clk 0:00:10]} 27. Bxf5 {[%clk 0:00:50]}  Rxf5 {[%clk 0:00:10]} 28. Nef3 {[%clk 0:00:48]}  Qf7 {[%clk 0:00:06]} 29. Qe2 {[%clk 0:00:47]}  Rc6 {[%clk 0:00:04]} 30. Bxg7 {[%clk 0:00:47]}  Qxg7 {[%clk 0:00:04]} 31. Rad1 {[%clk 0:00:41]}  e5 {[%clk 0:00:04]} 32. Rxd5 {[%clk 0:00:35]}  Rd6 {[%clk 0:00:04]} 33. Rxe5 {[%clk 0:00:33]}  Rxe5 {[%clk 0:00:02]} 34. Nxe5 {[%clk 0:00:30]}  Rf6 {[%clk 0:00:02]} 35. Qc4+ {[%clk 0:00:29]}  Kh7 {[%clk 0:00:02]} 36. Nhf3 {[%clk 0:00:29]}  e6 {[%clk 0:00:02]} 37. Ng5+ {[%clk 0:00:27]}  Kh6 {[%clk 0:00:00]} 38. Qc1 {[%clk 0:00:28]} 1-0


[Site "https://www.chess.com"]

[Event "Titled Tuesday Blitz June 13 Early 2023"]
[White "Chernobay, Artem"]
[Black "Beerdsen, Thomas"]
[WhiteFideId "4167406"]
[BlackFideId "1030108"]
[WhiteElo "2474"]
[BlackElo "2553"]
[Result "0-1"]
[Round "5"]
[TimeControl "180+2"]
[Date "2023.06.13"]
[WhiteClock "0:00:00"]
[BlackClock "0:00:40"]
[Board "41"]

1. d4 {[%clk 0:02:59]}  Nf6 {[%clk 0:02:55]} 2. c4 {[%clk 0:02:59]}  a6 {[%clk 0:02:55]} 3. Nc3 {[%clk 0:02:57]}  b5 {[%clk 0:02:55]} 4. cxb5 {[%clk 0:02:56]}  axb5 {[%clk 0:02:56]} 5. Nxb5 {[%clk 0:02:56]}  e5 {[%clk 0:02:57]} 6. dxe5 {[%clk 0:02:51]}  Ne4 {[%clk 0:02:57]} 7. Nc3 {[%clk 0:02:44]}  Bb4 {[%clk 0:02:55]} 8. Bd2 {[%clk 0:02:41]}  Nxd2 {[%clk 0:02:53]} 9. Qxd2 {[%clk 0:02:40]}  O-O {[%clk 0:02:54]} 10. Nf3 {[%clk 0:02:39]}  Bb7 {[%clk 0:02:48]} 11. g3 {[%clk 0:02:30]}  Nc6 {[%clk 0:02:46]} 12. Bg2 {[%clk 0:02:24]}  Nxe5 {[%clk 0:02:45]} 13. O-O {[%clk 0:02:24]}  Nc4 {[%clk 0:02:40]} 14. Qc2 {[%clk 0:02:13]}  Rb8 {[%clk 0:02:29]} 15. a3 {[%clk 0:02:00]}  Be7 {[%clk 0:02:20]} 16. b4 {[%clk 0:01:51]}  Bf6 {[%clk 0:02:15]} 17. Qb3 {[%clk 0:01:44]}  d5 {[%clk 0:02:08]} 18. Rfd1 {[%clk 0:01:41]}  Qe7 {[%clk 0:02:07]} 19. Rac1 {[%clk 0:01:30]}  c6 {[%clk 0:02:03]} 20. e4 {[%clk 0:01:16]}  Rfd8 {[%clk 0:01:54]} 21. exd5 {[%clk 0:01:12]}  cxd5 {[%clk 0:01:55]} 22. Nd4 {[%clk 0:01:02]}  g6 {[%clk 0:01:48]} 23. Nxd5 {[%clk 0:00:53]}  Bxd5 {[%clk 0:01:48]} 24. Bxd5 {[%clk 0:00:53]}  Rxd5 {[%clk 0:01:48]} 25. Nc6 {[%clk 0:00:38]}  Rxd1+ {[%clk 0:01:29]} 26. Rxd1 {[%clk 0:00:36]}  Qe2 {[%clk 0:01:13]} 27. Nxb8 {[%clk 0:00:34]}  Nd2 {[%clk 0:01:13]} 28. Rxd2 {[%clk 0:00:28]}  Qxd2 {[%clk 0:01:14]} 29. Nc6 {[%clk 0:00:28]}  Qc1+ {[%clk 0:01:14]} 30. Kg2 {[%clk 0:00:26]}  Qxc6+ {[%clk 0:01:15]} 31. Qf3 {[%clk 0:00:27]}  Qd6 {[%clk 0:01:10]} 32. Qe4 {[%clk 0:00:26]}  Bd4 {[%clk 0:01:06]} 33. b5 {[%clk 0:00:23]}  Bb6 {[%clk 0:00:53]} 34. a4 {[%clk 0:00:22]}  Qc5 {[%clk 0:00:50]} 35. Qf3 {[%clk 0:00:16]}  Kg7 {[%clk 0:00:47]} 36. h4 {[%clk 0:00:16]}  h5 {[%clk 0:00:47]} 37. Qe2 {[%clk 0:00:13]}  Qd4 {[%clk 0:00:46]} 38. Qc2 {[%clk 0:00:13]}  Qd5+ {[%clk 0:00:46]} 39. Kg1 {[%clk 0:00:12]}  Qe5 {[%clk 0:00:44]} 40. Kg2 {[%clk 0:00:12]}  Kh7 {[%clk 0:00:41]} 41. f3 {[%clk 0:00:00]}  Qd4 {[%clk 0:00:40]} 0-1


[Site "https://www.chess.com"]

[Event "Titled Tuesday Blitz June 13 Early 2023"]
[White "Ahmad, Khagan"]
[Black "Wojtaszek, Radoslaw"]
[WhiteFideId "13431552"]
[BlackFideId "1118358"]
[WhiteElo "2209"]
[BlackElo "2586"]
[Result "0-1"]
[Round "5"]
[TimeControl "180+2"]
[Date "2023.06.13"]
[WhiteClock "0:00:08"]
[BlackClock "0:00:14"]
[Board "42"]

1. e4 {[%clk 0:03:00]}  c6 {[%clk 0:02:59]} 2. d4 {[%clk 0:02:58]}  d5 {[%clk 0:03:00]} 3. Nc3 {[%clk 0:02:53]}  dxe4 {[%clk 0:02:59]} 4. Nxe4 {[%clk 0:02:54]}  Nd7 {[%clk 0:03:00]} 5. Ng5 {[%clk 0:02:47]}  Ngf6 {[%clk 0:03:00]} 6. Bd3 {[%clk 0:02:44]}  e6 {[%clk 0:03:00]} 7. N1f3 {[%clk 0:02:33]}  Bd6 {[%clk 0:03:00]} 8. Qe2 {[%clk 0:02:29]}  h6 {[%clk 0:02:59]} 9. Ne4 {[%clk 0:02:29]}  Nxe4 {[%clk 0:02:59]} 10. Qxe4 {[%clk 0:02:30]}  Qc7 {[%clk 0:02:59]} 11. c3 {[%clk 0:02:27]}  b6 {[%clk 0:02:56]} 12. Qg4 {[%clk 0:02:22]}  Kf8 {[%clk 0:02:56]} 13. g3 {[%clk 0:02:16]}  Bb7 {[%clk 0:02:45]} 14. Bf4 {[%clk 0:02:15]}  Bxf4 {[%clk 0:02:41]} 15. gxf4 {[%clk 0:02:15]}  Nf6 {[%clk 0:02:39]} 16. Qg3 {[%clk 0:02:00]}  Nh5 {[%clk 0:02:31]} 17. Qg4 {[%clk 0:01:56]}  Nxf4 {[%clk 0:02:28]} 18. Kd2 {[%clk 0:01:52]}  Nxd3 {[%clk 0:02:12]} 19. Kxd3 {[%clk 0:01:53]}  c5 {[%clk 0:02:09]} 20. Rhg1 {[%clk 0:01:52]}  f5 {[%clk 0:02:03]} 21. Qh3 {[%clk 0:01:38]}  Bxf3 {[%clk 0:00:54]} 22. Qxf3 {[%clk 0:01:33]}  Rd8 {[%clk 0:00:55]} 23. Rae1 {[%clk 0:01:17]}  cxd4 {[%clk 0:00:54]} 24. cxd4 {[%clk 0:01:18]}  Qd6 {[%clk 0:00:44]} 25. Qe3 {[%clk 0:01:16]}  Kf7 {[%clk 0:00:43]} 26. f4 {[%clk 0:01:08]}  Rhe8 {[%clk 0:00:34]} 27. Rg2 {[%clk 0:01:06]}  Re7 {[%clk 0:00:31]} 28. Reg1 {[%clk 0:00:46]}  Kf8 {[%clk 0:00:31]} 29. Rg6 {[%clk 0:00:45]}  Qd5 {[%clk 0:00:25]} 30. b3 {[%clk 0:00:43]}  e5 {[%clk 0:00:18]} 31. fxe5 {[%clk 0:00:32]}  Rxe5 {[%clk 0:00:17]} 32. Qf2 {[%clk 0:00:21]}  Re4 {[%clk 0:00:15]} 33. Rxg7 {[%clk 0:00:13]}  Rxd4+ {[%clk 0:00:15]} 34. Kc3 {[%clk 0:00:11]}  Qc5+ {[%clk 0:00:14]} 35. Kb2 {[%clk 0:00:08]}  Rd2+ {[%clk 0:00:14]} 0-1


[Site "https://www.chess.com"]